[Event "GER-ch Blitz 2019"]
[Site "Magdeburg"]
[Date "2019.05.25"]
[Round "7.15"]
[White "Schneider, Ilja"]
[Black "Krause, Benedict"]
[Result "1-0"]
[ECO "A45"]
[WhiteElo "2494"]
[BlackElo "2434"]
[Annotator "ChessBase"]
[PlyCount "113"]
[EventDate "2019.05.25"]
[EventType "tourn"]
[EventCountry "GER"]
[Tiebreak "Number of wins+Number of black wins"]
[SourceTitle "playchess.com"]
[Source "ChessBase"]
[SourceQuality "1"]
[TimeControl "180+2"]

1. d4 {[%emt 0:00:00]} Nf6 {[%emt 0:00:00]} 2. Bg5 {[%emt 0:00:01]} Ne4 {
[%emt 0:00:00]} 3. Bf4 {[%emt 0:00:01]} d5 {[%emt 0:00:01]} 4. e3 {[%emt 0:00:
01]} c5 {[%emt 0:00:03]} 5. Bd3 {[%emt 0:00:01]} Nf6 {[%emt 0:00:02]} 6. c3 {
[%emt 0:00:01]} Nc6 {[%emt 0:00:01]} 7. Nd2 {[%emt 0:00:01]} Bg4 {[%emt 0:00:
01]} 8. Ngf3 {[%emt 0:00:05]} e6 {[%emt 0:00:02]} 9. O-O {[%emt 0:00:02]} Bd6 {
[%emt 0:00:01]} 10. Bxd6 Qxd6 11. h3 {[%emt 0:00:12]} Bh5 {[%emt 0:00:02]} 12.
dxc5 {[%emt 0:00:13]} Qxc5 {[%emt 0:00:01]} 13. e4 {[%emt 0:00:09]} Bxf3 {
[%emt 0:00:12]} 14. Qxf3 {[%emt 0:00:03]} Ne5 {[%emt 0:00:11]} 15. Qg3 {
[%emt 0:00:20]} Nxd3 {[%emt 0:00:02]} 16. Qxd3 {[%emt 0:00:05]} O-O {[%emt 0:
00:07]} 17. Nb3 {[%emt 0:00:20]} Qc7 {[%emt 0:00:03]} 18. exd5 {[%emt 0:00:02]}
Nxd5 {[%emt 0:00:02]} 19. Rfd1 {[%emt 0:00:06]} Rad8 {[%emt 0:00:07]} 20. Nd4 {
[%emt 0:00:12]} a6 {[%emt 0:00:05]} 21. Qf3 {[%emt 0:00:03]} Nf6 {[%emt 0:00:
07]} 22. Nb3 {[%emt 0:00:16]} b5 {[%emt 0:00:13]} 23. Rxd8 {[%emt 0:00:08]}
Rxd8 {[%emt 0:00:01]} 24. Rd1 {[%emt 0:00:00]} h6 {[%emt 0:00:12]} 25. Rxd8+ {
[%emt 0:00:18]} Qxd8 {[%emt 0:00:01]} 26. Nd4 {[%emt 0:00:09]} Qd5 {[%emt 0:00:
18]} 27. Qxd5 {[%emt 0:00:06]} Nxd5 {[%emt 0:00:01]} 28. Kf1 {[%emt 0:00:14]}
Kf8 {[%emt 0:00:01]} 29. Nc6 {[%emt 0:00:07]} Ke8 {[%emt 0:00:31]} 30. g3 {
[%emt 0:00:02]} Nc7 {[%emt 0:00:24]} 31. Ke2 {[%emt 0:00:03]} Kd7 {[%emt 0:00:
05]} 32. Ne5+ {[%emt 0:00:00]} Ke7 {[%emt 0:00:02]} 33. Kd3 {[%emt 0:00:02]} f6
{[%emt 0:00:04]} 34. Nc6+ {[%emt 0:00:12]} Kd6 {[%emt 0:00:00]} 35. Nd4 {
[%emt 0:00:02]} g6 {[%emt 0:00:15]} 36. c4 {[%emt 0:00:05]} bxc4+ {[%emt 0:00:
12]} 37. Kxc4 {[%emt 0:00:01]} e5 {[%emt 0:00:02]} 38. Nf3 {[%emt 0:00:08]} g5
{[%emt 0:00:24]} 39. Nd2 {[%emt 0:00:07]} f5 {[%emt 0:00:01]} 40. g4 {[%emt 0:
00:03]} fxg4 {[%emt 0:00:08]} 41. Ne4+ {[%emt 0:00:02]} Kc6 {[%emt 0:00:04]}
42. hxg4 {[%emt 0:00:01]} Nd5 {[%emt 0:00:01]} 43. b4 {[%emt 0:00:04]} Nf4 {
[%emt 0:00:02]} 44. a4 {[%emt 0:00:01]} h5 {[%emt 0:00:01]} 45. gxh5 {[%emt 0:
00:02]} Nxh5 {[%emt 0:00:01]} 46. Nxg5 {[%emt 0:00:03]} Nf6 {[%emt 0:00:01]}
47. Nf7 {[%emt 0:00:06]} e4 {[%emt 0:00:01]} 48. Ng5 {[%emt 0:00:04]} Ng4 {
[%emt 0:00:02]} 49. Nxe4 {[%emt 0:00:01]} Ne5+ {[%emt 0:00:01]} 50. Kd4 {
[%emt 0:00:00]} Nf3+ 51. Ke3 Ne5 {[%emt 0:00:02]} 52. f4 {[%emt 0:00:01]} Nc4+
{[%emt 0:00:00]} 53. Kd4 {[%emt 0:00:01]} Nb2 {[%emt 0:00:01]} 54. Nc3 {
[%emt 0:00:01]} Kd6 {[%emt 0:00:02]} 55. f5 {[%emt 0:00:02]} Ke7 {[%emt 0:00:
03]} 56. b5 {[%emt 0:00:01]} axb5 {[%emt 0:00:02]} 57. axb5 {[%emt 0:00:01]}
1-0

[Event "GER-ch Blitz 2019"]
[Site "Magdeburg"]
[Date "2019.05.25"]
[Round "8.1"]
[White "Kopylov, Michael"]
[Black "Gustafsson, Jan"]
[Result "0-1"]
[ECO "D30"]
[WhiteElo "2413"]
[BlackElo "2639"]
[Annotator "RC"]
[PlyCount "62"]
[EventDate "2019.05.25"]
[EventType "tourn"]
[EventCountry "GER"]
[Tiebreak "Number of wins+Number of black wins"]
[SourceTitle "playchess.com"]
[Source "ChessBase"]
[SourceQuality "1"]
[TimeControl "180+2"]

1. d4 {[%emt 0:00:00]} d5 {[%emt 0:00:00]} 2. c4 {[%emt 0:00:00]} e6 {[%emt 0:
00:00]} 3. Nf3 {[%emt 0:00:00]} a6 {[%emt 0:00:01]} 4. Nbd2 {[%emt 0:00:02]}
Nf6 {[%emt 0:00:06]} 5. g3 {[%emt 0:00:01]} dxc4 {[%emt 0:00:02]} 6. Nxc4 {
[%emt 0:00:03]} b5 {[%emt 0:00:01]} 7. Nce5 {[%emt 0:00:08]} Bb7 {[%emt 0:00:
01]} 8. Bg2 {[%emt 0:00:01]} c5 {[%emt 0:00:02]} 9. O-O {[%emt 0:00:03]} Nbd7 {
[%emt 0:00:05]} 10. Bg5 {[%emt 0:00:16]} Qb6 {[%emt 0:00:05]} 11. a4 Bd6 {
[%emt 0:00:21]} 12. dxc5 {[%emt 0:00:30]} Nxc5 {[%emt 0:00:18]} 13. axb5 {
[%emt 0:01:14]} axb5 {[%emt 0:00:02]} 14. Rxa8+ {[%emt 0:00:01]} Bxa8 {[%emt 0:
00:01]} 15. Bxf6 {[%emt 0:00:22]} gxf6 {[%emt 0:00:01]} 16. Ng4 {[%emt 0:00:00]
} Ke7 {[%emt 0:00:15]} 17. Qd4 {[%emt 0:00:17]} Nd7 {[%emt 0:00:09]} 18. Qd2 {
[%emt 0:00:06]} h5 {[%emt 0:00:10]} 19. Ne3 {[%emt 0:00:02]} Bxf3 {[%emt 0:00:
09]} 20. Bxf3 {[%emt 0:00:04]} h4 {[%emt 0:00:02]} 21. Rd1 {[%emt 0:00:02]} Ne5
{[%emt 0:00:11]} 22. Ng4 {[%emt 0:00:11]} Nxg4 {[%emt 0:00:07]} 23. Bxg4 {
[%emt 0:00:01]} hxg3 {[%emt 0:00:15]} 24. hxg3 {[%emt 0:00:00]} Rg8 {[%emt 0:
00:09]} 25. Bf3 {[%emt 0:00:14]} Rxg3+ 26. Kf1 Rg5 {[%emt 0:00:08]} 27. Qc3 {
[%emt 0:00:02]} Bc5 {[%emt 0:00:23]} 28. Qd3 {[%emt 0:00:05]} Bxf2 {[%emt 0:00:
08]} 29. Qd7+ {[%emt 0:00:01]} Kf8 {[%emt 0:00:01]} 30. Qc8+ {[%emt 0:00:07]}
Kg7 {[%emt 0:00:01]} 31. Bg2 {[%emt 0:00:02]} Bh4 {[%emt 0:00:05]} 0-1

[Event "GER-ch Blitz 2019"]
[Site "Magdeburg"]
[Date "2019.05.25"]
[Round "8.2"]
[White "Ehmann, Thilo"]
[Black "Kirchner, Thomas"]
[Result "0-1"]
[ECO "C88"]
[WhiteElo "2291"]
[BlackElo "2311"]
[Annotator "NA"]
[PlyCount "141"]
[EventDate "2019.05.25"]
[EventType "tourn"]
[EventCountry "GER"]
[Tiebreak "Number of wins+Number of black wins"]
[SourceTitle "playchess.com"]
[Source "ChessBase"]
[SourceQuality "1"]
[TimeControl "180+2"]

1. e4 {[%emt 0:00:00]} e5 {[%emt 0:00:00]} 2. Nf3 {[%emt 0:00:00]} Nc6 {
[%emt 0:00:00]} 3. Bb5 {[%emt 0:00:01]} a6 {[%emt 0:00:00]} 4. Ba4 {[%emt 0:00:
00]} Nf6 {[%emt 0:00:01]} 5. O-O {[%emt 0:00:02]} b5 {[%emt 0:00:01]} 6. Bb3 {
[%emt 0:00:00]} Be7 {[%emt 0:00:00]} 7. Re1 {[%emt 0:00:10]} O-O {[%emt 0:00:
02]} 8. h3 {[%emt 0:00:01]} Bb7 {[%emt 0:00:00]} 9. c3 {[%emt 0:00:04]} d5 {
[%emt 0:00:02]} 10. exd5 Nxd5 {[%emt 0:00:01]} 11. d3 {[%emt 0:00:07]} Bc5 {
[%emt 0:00:11]} 12. Bc2 {[%emt 0:00:32]} Re8 {[%emt 0:00:04]} 13. Nbd2 {
[%emt 0:00:02]} Bb6 {[%emt 0:00:07]} 14. Nf1 {[%emt 0:00:11]} b4 {[%emt 0:00:
14]} 15. Bd2 {[%emt 0:00:07]} bxc3 {[%emt 0:00:02]} 16. bxc3 {[%emt 0:00:01]}
Rb8 {[%emt 0:00:01]} 17. Ba4 {[%emt 0:00:04]} f6 {[%emt 0:00:08]} 18. Ng3 {
[%emt 0:00:12]} Kh8 {[%emt 0:00:02]} 19. Ne4 {[%emt 0:00:24]} Qd7 {[%emt 0:00:
34]} 20. c4 {[%emt 0:00:22]} Nde7 {[%emt 0:00:06]} 21. c5 {[%emt 0:00:08]} Ba7
{[%emt 0:00:03]} 22. Bc3 {[%emt 0:00:11]} Red8 {[%emt 0:00:06]} 23. Bc2 {
[%emt 0:00:10]} Nd5 {[%emt 0:00:04]} 24. Qd2 {[%emt 0:00:13]} Nxc3 {[%emt 0:00:
07]} 25. Qxc3 {[%emt 0:00:01]} Ne7 {[%emt 0:00:01]} 26. Rad1 {[%emt 0:00:11]}
Nd5 {[%emt 0:00:01]} 27. Qc4 {[%emt 0:00:04]} Qb5 {[%emt 0:00:13]} 28. Bb3 {
[%emt 0:00:12]} Nf4 {[%emt 0:00:07]} 29. Qxb5 {[%emt 0:00:11]} axb5 {[%emt 0:
00:01]} 30. d4 {[%emt 0:00:05]} exd4 31. g3 {[%emt 0:00:00]} Ng6 {[%emt 0:00:
29]} 32. Rxd4 Re8 {[%emt 0:00:17]} 33. Kf1 {[%emt 0:00:05]} Ne5 {[%emt 0:00:08]
} 34. Nxe5 {[%emt 0:00:02]} Rxe5 {[%emt 0:00:00]} 35. f4 {[%emt 0:00:04]} Ree8
{[%emt 0:00:06]} 36. Bd5 {[%emt 0:00:06]} Rbd8 {[%emt 0:00:04]} 37. Red1 Ba6
38. Bc6 {[%emt 0:00:03]} Rxd4 {[%emt 0:00:22]} 39. Rxd4 Rf8 {[%emt 0:00:09]}
40. Rd7 {[%emt 0:00:02]} Bb8 {[%emt 0:00:01]} 41. Re7 {[%emt 0:00:00]} b4+ {
[%emt 0:00:02]} 42. Kg2 Bc4 43. Nd2 {[%emt 0:00:05]} Bxa2 {[%emt 0:00:04]} 44.
Re4 {[%emt 0:00:01]} b3 {[%emt 0:00:01]} 45. Rb4 {[%emt 0:00:01]} Ba7 {[%emt 0:
00:04]} 46. Nxb3 {[%emt 0:00:00]} Bxb3 {[%emt 0:00:02]} 47. Rxb3 {[%emt 0:00:
01]} Bxc5 {[%emt 0:00:01]} 48. Rc3 {[%emt 0:00:01]} Bd6 {[%emt 0:00:02]} 49.
Kf3 {[%emt 0:00:01]} g6 {[%emt 0:00:02]} 50. g4 {[%emt 0:00:00]} Rb8 {[%emt 0:
00:01]} 51. Be4 {[%emt 0:00:02]} Kg7 {[%emt 0:00:02]} 52. f5 {[%emt 0:00:00]}
Rb2 {[%emt 0:00:02]} 53. Rd3 {[%emt 0:00:03]} Rb4 {[%emt 0:00:03]} 54. Rc3 {
[%emt 0:00:03]} Rb2 {[%emt 0:00:04]} 55. Rd3 {[%emt 0:00:01]} g5 {[%emt 0:00:
03]} 56. Bd5 {[%emt 0:00:01]} Bc5 {[%emt 0:00:05]} 57. Be6 {[%emt 0:00:02]} Bd6
{[%emt 0:00:01]} 58. Bd5 {[%emt 0:00:01]} Rh2 {[%emt 0:00:02]} 59. Ke4 {
[%emt 0:00:00]} Be5 {[%emt 0:00:02]} 60. Be6 {[%emt 0:00:01]} Bd6 {[%emt 0:00:
03]} 61. Kd5 {[%emt 0:00:01]} h5 {[%emt 0:00:03]} 62. Rd4 {[%emt 0:00:02]} hxg4
{[%emt 0:00:02]} 63. hxg4 {[%emt 0:00:01]} Rc2 {[%emt 0:00:01]} 64. Rc4 {
[%emt 0:00:02]} Rd2+ {[%emt 0:00:01]} 65. Ke4 {[%emt 0:00:01]} Kf8 {[%emt 0:00:
01]} 66. Ke3 {[%emt 0:00:01]} Rb2 {[%emt 0:00:02]} 67. Kf3 {[%emt 0:00:00]} Ke7
{[%emt 0:00:00]} 68. Ke3 {[%emt 0:00:01]} Be5 {[%emt 0:00:02]} 69. Rc6 {
[%emt 0:00:03]} Rb4 {[%emt 0:00:01]} 70. Kf3 {[%emt 0:00:00]} Bd6 {[%emt 0:00:
00]} 71. Rc4 {[%emt 0:00:01]} 0-1

[Event "GER-ch Blitz 2019"]
[Site "Magdeburg"]
[Date "2019.05.25"]
[Round "8.3"]
[White "Heidrich, Manfred"]
[Black "Braeuer, Franz"]
[Result "1/2-1/2"]
[ECO "B22"]
[WhiteElo "2351"]
[BlackElo "2445"]
[Annotator "NA"]
[PlyCount "61"]
[EventDate "2019.05.25"]
[EventType "tourn"]
[EventCountry "GER"]
[Tiebreak "Number of wins+Number of black wins"]
[SourceTitle "playchess.com"]
[Source "ChessBase"]
[SourceQuality "1"]
[TimeControl "180+2"]

1. e4 {[%emt 0:00:00]} c5 {[%emt 0:00:00]} 2. c3 {[%emt 0:00:00]} Nf6 {[%emt 0:
00:00]} 3. e5 {[%emt 0:00:01]} Nd5 {[%emt 0:00:01]} 4. d4 {[%emt 0:00:00]} cxd4
{[%emt 0:00:06]} 5. cxd4 {[%emt 0:00:01]} Nc6 {[%emt 0:00:06]} 6. Nc3 {[%emt 0:
00:16]} Nxc3 {[%emt 0:00:11]} 7. bxc3 {[%emt 0:00:01]} d6 {[%emt 0:00:01]} 8.
f4 {[%emt 0:00:01]} e6 {[%emt 0:00:16]} 9. Nf3 {[%emt 0:00:02]} Be7 {[%emt 0:
00:00]} 10. Bd3 {[%emt 0:00:02]} O-O {[%emt 0:00:25]} 11. O-O {[%emt 0:00:02]}
Bd7 {[%emt 0:00:08]} 12. Qe2 {[%emt 0:00:23]} d5 {[%emt 0:00:12]} 13. g4 {
[%emt 0:00:13]} f6 {[%emt 0:00:50]} 14. exf6 {[%emt 0:00:08]} Rxf6 {[%emt 0:00:
01]} 15. Bd2 {[%emt 0:00:11]} Bd6 {[%emt 0:00:08]} 16. Ne5 {[%emt 0:00:08]} Rf8
{[%emt 0:00:17]} 17. Rae1 {[%emt 0:00:03]} Nxe5 {[%emt 0:00:10]} 18. fxe5 {
[%emt 0:00:03]} Be7 {[%emt 0:00:06]} 19. Rxf8+ {[%emt 0:00:18]} Qxf8 {[%emt 0:
00:01]} 20. Qg2 {[%emt 0:00:07]} Qe8 {[%emt 0:00:14]} 21. Qh3 {[%emt 0:00:23]}
g6 {[%emt 0:00:01]} 22. Rf1 {[%emt 0:00:01]} Bb5 {[%emt 0:00:07]} 23. Bxb5 {
[%emt 0:00:21]} Qxb5 {[%emt 0:00:01]} 24. Rf7 {[%emt 0:00:01]} Kxf7 {[%emt 0:
00:08]} 25. Qxh7+ {[%emt 0:00:01]} Ke8 {[%emt 0:00:01]} 26. Qg8+ {[%emt 0:00:
02]} Kd7 {[%emt 0:00:06]} 27. Qxa8 {[%emt 0:00:02]} Qb1+ {[%emt 0:00:01]} 28.
Kf2 {[%emt 0:00:01]} Bh4+ {[%emt 0:00:02]} 29. Ke2 {[%emt 0:00:03]} Qe4+ {
[%emt 0:00:03]} 30. Kd1 {[%emt 0:00:01]} Qb1+ {[%emt 0:00:01]} 31. Ke2 {
[%emt 0:00:00]} 1/2-1/2

[Event "GER-ch Blitz 2019"]
[Site "Magdeburg"]
[Date "2019.05.25"]
[Round "8.4"]
[White "Buhmann, Rainer"]
[Black "Svane, Frederik"]
[Result "1-0"]
[ECO "E73"]
[WhiteElo "2573"]
[BlackElo "2342"]
[Annotator "ChessBase"]
[PlyCount "93"]
[EventDate "2019.05.25"]
[EventType "tourn"]
[EventCountry "GER"]
[Tiebreak "Number of wins+Number of black wins"]
[SourceTitle "playchess.com"]
[Source "ChessBase"]
[SourceQuality "1"]
[TimeControl "180+2"]

1. d4 {[%emt 0:00:00]} Nf6 {[%emt 0:00:00]} 2. c4 {[%emt 0:00:00]} g6 {[%emt 0:
00:00]} 3. Nc3 {[%emt 0:00:01]} Bg7 {[%emt 0:00:01]} 4. e4 {[%emt 0:00:01]} d6
{[%emt 0:00:01]} 5. Be2 {[%emt 0:00:02]} O-O {[%emt 0:00:02]} 6. Be3 {[%emt 0:
00:01]} e5 {[%emt 0:00:01]} 7. d5 {[%emt 0:00:01]} Na6 {[%emt 0:00:00]} 8. g4 {
[%emt 0:00:04]} Nc5 {[%emt 0:00:01]} 9. f3 {[%emt 0:00:02]} h5 {[%emt 0:00:07]}
10. h4 {[%emt 0:00:01]} c6 {[%emt 0:00:31]} 11. b4 {[%emt 0:00:19]} Na6 {
[%emt 0:00:12]} 12. a3 {[%emt 0:00:05]} Nc7 {[%emt 0:00:20]} 13. g5 {[%emt 0:
00:09]} Nfe8 {[%emt 0:00:19]} 14. Nh3 {[%emt 0:00:38]} cxd5 {[%emt 0:00:12]}
15. cxd5 {[%emt 0:00:02]} Bd7 {[%emt 0:00:21]} 16. Nf2 {[%emt 0:00:04]} f5 {
[%emt 0:00:33]} 17. Nd3 {[%emt 0:00:09]} Nb5 {[%emt 0:00:33]} 18. Nxb5 {
[%emt 0:00:02]} Bxb5 {[%emt 0:00:00]} 19. Nf2 {[%emt 0:00:14]} Bd7 {[%emt 0:00:
02]} 20. Bd3 {[%emt 0:00:07]} a5 {[%emt 0:00:13]} 21. O-O {[%emt 0:00:09]} b5 {
[%emt 0:00:09]} 22. Qe2 {[%emt 0:00:02]} a4 {[%emt 0:00:03]} 23. Bxb5 {[%emt 0:
00:04]} fxe4 {[%emt 0:00:01]} 24. fxe4 {[%emt 0:00:10]} Rb8 {[%emt 0:00:02]}
25. Bxd7 {[%emt 0:00:04]} Qxd7 {[%emt 0:00:00]} 26. Kg2 Nc7 27. Qd3 {[%emt 0:
00:21]} Nb5 {[%emt 0:00:04]} 28. Rac1 {[%emt 0:00:09]} Rf7 {[%emt 0:00:03]} 29.
Rc6 {[%emt 0:00:08]} Nd4 {[%emt 0:00:04]} 30. Bxd4 {[%emt 0:00:03]} exd4 {
[%emt 0:00:00]} 31. Qh3 {[%emt 0:00:03]} Qe7 {[%emt 0:00:03]} 32. Qe6 {[%emt 0:
00:05]} Qxe6 {[%emt 0:00:02]} 33. dxe6 {[%emt 0:00:01]} Re7 {[%emt 0:00:01]}
34. Rxd6 {[%emt 0:00:03]} Rbe8 {[%emt 0:00:01]} 35. Nd3 {[%emt 0:00:05]} Rxe6 {
[%emt 0:00:01]} 36. Rxe6 {[%emt 0:00:02]} Rxe6 {[%emt 0:00:00]} 37. e5 {
[%emt 0:00:01]} Rc6 {[%emt 0:00:02]} 38. Rf3 {[%emt 0:00:11]} Rc2+ {[%emt 0:00:
01]} 39. Kg3 {[%emt 0:00:02]} Rc3 {[%emt 0:00:01]} 40. e6 {[%emt 0:00:02]} Bf8
{[%emt 0:00:04]} 41. Nc5 {[%emt 0:00:15]} Bd6+ {[%emt 0:00:01]} 42. Kg2 {
[%emt 0:00:01]} Rc2+ {[%emt 0:00:06]} 43. Rf2 {[%emt 0:00:01]} Rc3 {[%emt 0:00:
01]} 44. Ne4 {[%emt 0:00:03]} Rc6 {[%emt 0:00:02]} 45. Nxd6 {[%emt 0:00:02]}
Rxd6 {[%emt 0:00:01]} 46. e7 {[%emt 0:00:00]} Re6 {[%emt 0:00:04]} 47. Rf8+ {
[%emt 0:00:01]} 1-0

[Event "GER-ch Blitz 2019"]
[Site "Magdeburg"]
[Date "2019.05.25"]
[Round "8.5"]
[White "Schulze, Marc"]
[Black "Baskin, Robert"]
[Result "1-0"]
[ECO "D02"]
[WhiteElo "2220"]
[BlackElo "2398"]
[Annotator "NA"]
[PlyCount "63"]
[EventDate "2019.05.25"]
[EventType "tourn"]
[EventCountry "GER"]
[Tiebreak "Number of wins+Number of black wins"]
[SourceTitle "playchess.com"]
[Source "ChessBase"]
[SourceQuality "1"]
[TimeControl "180+2"]

1. d4 {[%emt 0:00:00]} Nf6 {[%emt 0:00:00]} 2. Bf4 {[%emt 0:00:00]} d5 {
[%emt 0:00:00]} 3. Nf3 {[%emt 0:00:02]} c5 {[%emt 0:00:00]} 4. e3 {[%emt 0:00:
00]} Nc6 {[%emt 0:00:01]} 5. c3 {[%emt 0:00:01]} Qb6 {[%emt 0:00:01]} 6. Qb3 {
[%emt 0:00:01]} c4 7. Qc2 Bf5 8. Qc1 e6 {[%emt 0:00:03]} 9. Nbd2 {[%emt 0:00:
02]} h6 {[%emt 0:00:01]} 10. h3 {[%emt 0:00:01]} Be7 {[%emt 0:00:00]} 11. b3 {
[%emt 0:00:01]} Qa5 {[%emt 0:00:03]} 12. a4 {[%emt 0:00:01]} cxb3 {[%emt 0:00:
16]} 13. Nxb3 {[%emt 0:00:01]} Qd8 {[%emt 0:00:01]} 14. a5 {[%emt 0:00:07]} Rc8
{[%emt 0:00:06]} 15. a6 {[%emt 0:00:12]} Qb6 {[%emt 0:00:09]} 16. axb7 {
[%emt 0:00:12]} Qxb7 {[%emt 0:00:01]} 17. Qb2 {[%emt 0:00:02]} a5 {[%emt 0:00:
13]} 18. Ne5 {[%emt 0:00:17]} Nxe5 {[%emt 0:00:33]} 19. Bxe5 {[%emt 0:00:01]}
Ne4 {[%emt 0:00:06]} 20. Rxa5 {[%emt 0:00:20]} Nxc3 {[%emt 0:00:15]} 21. Ba6 {
[%emt 0:00:11]} Qb4 {[%emt 0:00:03]} 22. O-O {[%emt 0:00:02]} Ra8 {[%emt 0:00:
12]} 23. Rc1 {[%emt 0:00:10]} Bd8 {[%emt 0:01:07]} 24. Bb5+ {[%emt 0:00:14]}
Qxb5 {[%emt 0:00:26]} 25. Rxb5 {[%emt 0:00:06]} Nxb5 {[%emt 0:00:01]} 26. Nc5 {
[%emt 0:00:01]} Na3 {[%emt 0:00:07]} 27. Ra1 {[%emt 0:00:09]} O-O {[%emt 0:00:
04]} 28. Rxa3 {[%emt 0:00:03]} Rxa3 {[%emt 0:00:01]} 29. Qxa3 {[%emt 0:00:00]}
Be7 {[%emt 0:00:04]} 30. Qa7 {[%emt 0:00:05]} Re8 {[%emt 0:00:00]} 31. Qd7 {
[%emt 0:00:02]} Kf8 {[%emt 0:00:01]} 32. Bxg7+ {[%emt 0:00:02]} 1-0

[Event "GER-ch Blitz 2019"]
[Site "Magdeburg"]
[Date "2019.05.25"]
[Round "8.6"]
[White "Koch, Thomas"]
[Black "Zelbel, Patrick"]
[Result "1-0"]
[ECO "A61"]
[WhiteElo "2474"]
[BlackElo "2439"]
[Annotator "ChessBase"]
[PlyCount "87"]
[EventDate "2019.05.25"]
[EventType "tourn"]
[EventCountry "GER"]
[Tiebreak "Number of wins+Number of black wins"]
[SourceTitle "playchess.com"]
[Source "ChessBase"]
[SourceQuality "1"]
[TimeControl "180+2"]

1. d4 {[%emt 0:00:00]} Nf6 {[%emt 0:00:00]} 2. c4 {[%emt 0:00:00]} e6 {[%emt 0:
00:00]} 3. Nf3 {[%emt 0:00:01]} c5 {[%emt 0:00:00]} 4. d5 {[%emt 0:00:02]} exd5
{[%emt 0:00:00]} 5. cxd5 {[%emt 0:00:01]} d6 {[%emt 0:00:01]} 6. Nc3 {[%emt 0:
00:01]} g6 {[%emt 0:00:00]} 7. Nd2 {[%emt 0:00:02]} Bg7 {[%emt 0:00:02]} 8. e4
{[%emt 0:00:01]} O-O {[%emt 0:00:10]} 9. Be2 {[%emt 0:00:00]} a6 {[%emt 0:00:
05]} 10. a4 {[%emt 0:00:01]} Nbd7 {[%emt 0:00:09]} 11. O-O {[%emt 0:00:02]} Re8
{[%emt 0:00:07]} 12. Ra3 {[%emt 0:00:06]} Ne5 {[%emt 0:00:10]} 13. h3 {[%emt 0:
00:03]} g5 {[%emt 0:00:06]} 14. a5 {[%emt 0:00:07]} Bd7 {[%emt 0:00:12]} 15.
Nf3 {[%emt 0:00:07]} Nxf3+ 16. Bxf3 {[%emt 0:00:02]} h6 {[%emt 0:00:18]} 17.
Re1 {[%emt 0:00:07]} Rb8 {[%emt 0:00:05]} 18. Bd2 {[%emt 0:00:16]} b5 {[%emt 0:
00:05]} 19. axb6 {[%emt 0:00:02]} Qxb6 {[%emt 0:00:13]} 20. Bc1 {[%emt 0:00:03]
} Bc8 {[%emt 0:00:18]} 21. Qc2 {[%emt 0:00:17]} Nd7 {[%emt 0:00:08]} 22. Be2 {
[%emt 0:00:04]} Ne5 {[%emt 0:00:06]} 23. Kh2 {[%emt 0:00:10]} Ng6 {[%emt 0:00:
03]} 24. g3 {[%emt 0:00:06]} a5 {[%emt 0:00:25]} 25. Kg2 {[%emt 0:00:02]} Ba6 {
[%emt 0:00:11]} 26. Bxa6 {[%emt 0:00:04]} Qxa6 {[%emt 0:00:00]} 27. Qe2 {
[%emt 0:00:19]} Qb6 {[%emt 0:00:06]} 28. Qh5 {[%emt 0:00:05]} Qd8 {[%emt 0:00:
05]} 29. Re2 {[%emt 0:00:09]} Rb4 {[%emt 0:00:03]} 30. Re1 {[%emt 0:00:11]} Kh7
{[%emt 0:00:26]} 31. Qf3 {[%emt 0:00:09]} Kg8 {[%emt 0:00:09]} 32. Nd1 {
[%emt 0:00:13]} Qb6 {[%emt 0:00:06]} 33. Bd2 {[%emt 0:00:08]} Rb5 {[%emt 0:00:
03]} 34. Bc3 {[%emt 0:00:03]} Ne5 {[%emt 0:00:02]} 35. Qe2 {[%emt 0:00:02]} Rb8
{[%emt 0:00:04]} 36. Ne3 {[%emt 0:00:01]} Qd8 {[%emt 0:00:04]} 37. Nf5 {
[%emt 0:00:03]} Bf8 {[%emt 0:00:08]} 38. Rea1 {[%emt 0:00:02]} Kh7 {[%emt 0:00:
02]} 39. Rxa5 {[%emt 0:00:03]} Rxa5 40. Rxa5 {[%emt 0:00:01]} Qd7 {[%emt 0:00:
04]} 41. Ra6 {[%emt 0:00:02]} Rb7 {[%emt 0:00:02]} 42. Bxe5 {[%emt 0:00:02]}
dxe5 {[%emt 0:00:01]} 43. Qh5 {[%emt 0:00:01]} Qb5 {[%emt 0:00:04]} 44. Rxh6+ {
[%emt 0:00:02]} 1-0

[Event "GER-ch Blitz 2019"]
[Site "Magdeburg"]
[Date "2019.05.25"]
[Round "8.7"]
[White "Kopylov, Daniel"]
[Black "Wichmann, Cliff"]
[Result "0-1"]
[ECO "C01"]
[WhiteElo "2263"]
[BlackElo "2280"]
[Annotator "NA"]
[PlyCount "94"]
[EventDate "2019.05.25"]
[EventType "tourn"]
[EventCountry "GER"]
[Tiebreak "Number of wins+Number of black wins"]
[SourceTitle "playchess.com"]
[Source "ChessBase"]
[SourceQuality "1"]
[TimeControl "180+2"]

1. e4 {[%emt 0:00:00]} e6 {[%emt 0:00:00]} 2. d4 {[%emt 0:00:02]} d5 {[%emt 0:
00:00]} 3. exd5 {[%emt 0:00:01]} exd5 {[%emt 0:00:00]} 4. Nf3 {[%emt 0:00:01]}
Bd6 {[%emt 0:00:02]} 5. c4 {[%emt 0:00:01]} Nf6 {[%emt 0:00:01]} 6. Nc3 {
[%emt 0:00:03]} O-O {[%emt 0:00:02]} 7. cxd5 {[%emt 0:00:02]} Re8+ {[%emt 0:00:
04]} 8. Be2 {[%emt 0:00:01]} Nbd7 {[%emt 0:00:02]} 9. Bg5 {[%emt 0:00:03]} h6 {
[%emt 0:00:02]} 10. Bh4 {[%emt 0:00:01]} Nb6 {[%emt 0:00:02]} 11. O-O {[%emt 0:
00:09]} Be7 {[%emt 0:00:00]} 12. Bxf6 {[%emt 0:00:04]} Bxf6 {[%emt 0:00:02]}
13. Qb3 {[%emt 0:00:01]} Nxd5 {[%emt 0:00:11]} 14. Qxd5 {[%emt 0:00:07]} Qxd5 {
[%emt 0:00:06]} 15. Nxd5 {[%emt 0:00:01]} Rxe2 {[%emt 0:00:01]} 16. Nxc7 {
[%emt 0:00:30]} Rb8 {[%emt 0:00:02]} 17. Nd5 {[%emt 0:00:05]} Rxb2 {[%emt 0:00:
10]} 18. Nxf6+ gxf6 {[%emt 0:00:01]} 19. Rfe1 {[%emt 0:00:10]} Be6 {[%emt 0:00:
03]} 20. a3 {[%emt 0:00:06]} Rd8 {[%emt 0:00:19]} 21. Rab1 {[%emt 0:00:13]}
Rxb1 {[%emt 0:00:06]} 22. Rxb1 {[%emt 0:00:00]} Bd5 {[%emt 0:00:07]} 23. Rd1 {
[%emt 0:00:56]} Rc8 {[%emt 0:00:15]} 24. Nh4 {[%emt 0:00:06]} Rc3 {[%emt 0:00:
07]} 25. Nf5 {[%emt 0:00:04]} Be6 {[%emt 0:00:06]} 26. Nd6 {[%emt 0:00:27]} b6
{[%emt 0:00:05]} 27. h3 {[%emt 0:00:02]} Rxa3 {[%emt 0:00:49]} 28. Ne8 {
[%emt 0:00:06]} Kf8 {[%emt 0:00:15]} 29. Nxf6 {[%emt 0:00:02]} Ke7 {[%emt 0:00:
01]} 30. Ng8+ {[%emt 0:00:05]} Kd6 {[%emt 0:00:03]} 31. Nxh6 {[%emt 0:00:03]}
b5 {[%emt 0:00:01]} 32. d5 {[%emt 0:00:02]} Bd7 {[%emt 0:00:00]} 33. Nxf7+ {
[%emt 0:00:01]} Ke7 {[%emt 0:00:01]} 34. Ne5 {[%emt 0:00:04]} b4 {[%emt 0:00:
02]} 35. d6+ {[%emt 0:00:01]} Ke6 {[%emt 0:00:00]} 36. Nc4 {[%emt 0:00:07]} Rc3
{[%emt 0:00:03]} 37. Re1+ {[%emt 0:00:13]} Kd5 {[%emt 0:00:02]} 38. Ne3+ {
[%emt 0:00:01]} Kxd6 {[%emt 0:00:05]} 39. Rd1+ {[%emt 0:00:01]} Kc6 {[%emt 0:
00:02]} 40. Nd5 {[%emt 0:00:02]} Rc4 {[%emt 0:00:06]} 41. Ne7+ {[%emt 0:00:04]}
Kc7 {[%emt 0:00:01]} 42. Nd5+ {[%emt 0:00:01]} Kc8 {[%emt 0:00:10]} 43. Ne7+ {
[%emt 0:00:01]} Kd8 {[%emt 0:00:00]} 44. Ng6 {[%emt 0:00:04]} Rc7 {[%emt 0:00:
09]} 45. Ne5 {[%emt 0:00:02]} b3 {[%emt 0:00:04]} 46. g4 {[%emt 0:00:09]} b2 {
[%emt 0:00:02]} 47. Nxd7 {[%emt 0:00:06]} Rc1 {[%emt 0:00:00]} 0-1